Cogmind - Beta 11.1 @@@ ROGUE MODE // 2022.04.28 @ 01:41:10 Player: Olga Result: Destroyed by B-75 Beast with Magnetic Acceleration Cannon Performance ------------- Evolutions (4) 2000 Regions Visited (7) 1400 Robots Destroyed (26) 130 Value Destroyed (787) 787 Prototype IDs (1) 20 Alien Tech Used (0) 0 Bonus (114) 114 TOTAL SCORE: 4451 Bonus ------- Follower Combat Kills 114 Cogmind --------- Core Integrity 0/850 Matter 257/300 Energy 83/100 System Corruption 2% Temperature Cool (12) Movement Core (50) Location -6/Extension Parts ------- > --- POWER (1) -------- (None) > --- PROPULSION (5) --- (None) > --- UTILITY (7) ------ Advanced Visual Processing Unit > --- WEAPON (2) ------- Ripper > --- INVENTORY (5) ---- (None) Peak State ------------ > --- POWER ------------ Light Angular Momentum Engine > --- PROPULSION ------- VTOL Module VTOL Module VTOL Module Improved Flight Unit Nuclear Pulse Thruster > --- UTILITY ---------- Medium Storage Unit Weight Redist. System Advanced Visual Processing Unit Improved Reaction Control System Improved Propulsion Shielding Layered Light Armor Plating System Shield > --- WEAPON ----------- Mini Grenade Launcher Mini Grenade Launcher > --- INVENTORY -------- Light Deuterium Engine Cooling System Recoil Stabilizer Cloaking Device Hardlight Generator Lightning Gun Heavy Assault Rifle Mini Grenade Launcher [Rating: 46] Favorites ----------- Power Light Ion Engine Engine Light Ion Engine Power Core Light Nuclear Core Propulsion VTOL Module Treads Light Treads Leg Carbon-fiber Leg Wheel Armored Wheel Flight Unit VTOL Module Utility Advanced Visual Processing Unit Device Weight Redist. System Storage Huge Storage Unit Processor Advanced Visual Processing Unit Hackware System Shield Protection Layered Light Armor Plating Weapon Heavy Assault Rifle Energy Gun Medium Laser Ballistic Gun Heavy Assault Rifle Launcher Mini Grenade Launcher Slashing Weapon Ripper Build | -11 -10 -10 -9 -8 -7 -6 -6 ------- Run | Scr Mat Min Mat Mat Fac Fac Ext Slots Evolved 8 | . . . 2 2 2 2 . Power . | . . . . . . . . Propulsion 3 | . . . . 2 1 . . Utility 5 | . . . 2 . 1 2 . Weapon . | . . . . . . . . Parts Attached 76 | . 13 . 3 12 8 6 34 Power 10 | . 1 . 1 1 . 2 5 Engine 7 | . 1 . 1 1 . 2 2 Core 3 | . . . . . . . 3 Reactor . | . . . . . . . . Propulsion 24 | . 8 . . 5 . 1 10 Treads 2 | . 2 . . . . . . Leg 6 | . . . . . . . 6 Wheel 6 | . 6 . . . . . . Hover . | . . . . . . . . Flight 10 | . . . . 5 . 1 4 Utility 26 | . 2 . 2 4 6 3 9 Device 10 | . 1 . 1 . 2 1 5 Storage 3 | . 1 . . . 2 . . Processor 5 | . . . 1 3 1 . . Hackware 1 | . . . . . . 1 . Protection 7 | . . . . 1 1 1 4 Artifact . | . . . . . . . . Weapon 16 | . 2 . . 2 2 . 10 Energy Gun 2 | . . . . . . . 2 Energy Cannon . | . . . . . . . . Ballistic Gun 7 | . 2 . . . 2 . 3 Ballistic Cannon . | . . . . . . . . Launcher 5 | . . . . 2 . . 3 Special Weapon . | . . . . . . . . Impact Weapon . | . . . . . . . . Slashing Weapon 2 | . . . . . . . 2 Piercing Weapon . | . . . . . . . . Special Melee Weapon . | . . . . . . . . Unidentified Prototypes 1 | . . . . 1 . . . Corrupted Parts 1 | . . . . . . . 1 System Corruption 1 | . . . . . . . 1 Parts Lost 38 | . . . . . . . 38 Power 3 | . . . . . . . 3 Propulsion 15 | . . . . . . . 15 Utility 13 | . . . . . . . 13 Weapon 7 | . . . . . . . 7 Highest Loss Streak 17 | . . . . . . . 17 To Critical Strikes . | . . . . . . . . Average Slot Usage (%) 86 | . 90 100 99 100 91 81 65 Engine 8 | . 14 14 11 9 7 6 3 Leg 2 | . 6 . . . . . 6 Wheel 9 | . 21 28 22 . . . . Flight 13 | . . . . 35 30 28 9 Device 11 | . 4 14 21 2 6 12 14 Storage 7 | . 14 14 11 1 6 6 1 Processor 8 | . . . 10 24 15 7 6 Hackware 1 | . . . . . . 5 5 Protection 4 | . . . . 7 7 11 6 Ballistic Gun 13 | . 26 28 22 1 14 . 1 Launcher 1 | . . . . 16 . . 2 Naked Turns . | . . . . . . . . Heaviest Build 95 | 11 92 92 95 8 23 27 29 Greatest Support 45 | 20 26 24 24 17 23 29 45 Greatest Overweight (x) 4 | . 4 3 3 . 1 . 1 Average Overweight (x) . | . 2 3 3 . . . . Largest Inventory Capacity 25 | . 25 25 25 25 10 10 10 Average Capacity 14 | . 21 25 25 7 9 10 6 Most Carried 25 | . 22 23 25 24 10 10 10 Average Carried 12 | . 13 22 24 7 8 9 4 Final Capacity 25 | 8 25 25 25 5 10 10 5 Final Carried 25 | 6 22 23 25 5 10 10 . Class Distribution -------------------- 50% | Mutant 43% | Sprinter 6% | Scavenger-Mutant Dominant Class ---------------- Mutant | -10/Materials Mutant | -10/Mines Mutant | -9/Materials Sprinter | -8/Materials Sprinter | -7/Factory Sprinter | -6/Factory Mutant | -6/Extension Resources | -11 -10 -10 -9 -8 -7 -6 -6 ----------- Run | Scr Mat Min Mat Mat Fac Fac Ext Matter Collected 1472 | 200 267 23 117 49 287 122 407 Remotely 117 | . . . 117 . . . . Salvage Created 610 | . 30 . 195 76 108 . 201 Parts 50 | . 4 . 12 14 9 . 11 Haulers Intercepted 2 | . . . . . 2 . . Recyclers Shooed . | . . . . . . . . Parts Field Recycled . | . . . . . . . . Retrieved Matter . | . . . . . . . . Parts Self-Destructed . | . . . . . . . . Prevented . | . . . . . . . . Kills | -11 -10 -10 -9 -8 -7 -6 -6 ------- Run | Scr Mat Min Mat Mat Fac Fac Ext Combat Hostiles Destroyed 21 | . . . 4 10 . . 7 Melee 3 | . . . . . . . 3 Guns 5 | . . . 4 . . . 1 AOE 13 | . . . . 10 . . 3 Classes Destroyed 6 | . 1 . 2 2 1 . . Tunneler 1 | . . . . 1 . . . Hauler 2 | . . . . . 2 . . Watcher 2 | . 1 . . 1 . . . Swarmer 11 | . . . . 9 . . 2 Grunt 6 | . . . 1 . . . 5 Sentry 4 | . . . 3 1 . . . Best Kill Streak 10 | . 1 . 1 10 1 . 3 Combat Bots Only 9 | . . . 1 9 . . 3 Max Kills in Single Turn 4 | . 1 . 1 4 1 . 2 Gunslinging . | . . . . . . . . Exploded 4 | . . . . 4 . . 2 Melee 1 | . . . . . . . 1 Uniques/NPCs Destroyed . | . . . . . . . . Combat | -11 -10 -10 -9 -8 -7 -6 -6 -------- Run | Scr Mat Min Mat Mat Fac Fac Ext Damage Taken 3841 | . . . 172 74 260 114 3221 Core 964 | . . . 39 16 50 60 799 Absorbed by Shields 126 | . . . . . . . 126 Redirected to Shielding 134 | . . . . . . 35 99 Core Remaining (%) 95 | 100 . 100 90 97 92 . . Volleys Fired 50 | . 1 . 6 6 13 . 24 Largest 2 | . 2 . 2 2 2 . 2 Hottest 85 | . 46 . 46 60 46 . 85 Shots Fired 94 | . 2 . 12 12 26 . 42 Gun 57 | . 2 . 12 . 26 . 17 Cannon . | . . . . . . . . Launcher 37 | . . . . 12 . . 25 Special . | . . . . . . . . Kinetic 49 | . 2 . 12 . 26 . 9 Thermal . | . . . . . . . . Explosive 37 | . . . . 12 . . 25 Electromagnetic 8 | . . . . . . . 8 Robot Hit Streak 20 | . 1 . 12 16 20 . 5 Robot Miss Streak 2 | . 1 . . . 1 . 2 Penetration Max . | . . . . . . . . Secondary Targets . | . . . . . . . . Shots Hit Robots 61 | . 1 . 11 4 15 . 30 Core Hits 55 | . 1 . 6 17 5 . 26 Critical Kills . | . . . . . . . . Critical Parts Destroyed . | . . . . . . . . Critical Strikes 3 | . . . . . . . 3 Sever 3 | . . . . . . . 3 Melee Attacks 20 | . . . . . . . 20 Impact . | . . . . . . . . Slashing 20 | . . . . . . . 20 Piercing . | . . . . . . . . Sneak Attacks . | . . . . . . . . Combat Hostiles . | . . . . . . . . Follow-up Attacks . | . . . . . . . . Damage Inflicted 3511 | . 15 . 157 716 672 . 1951 Guns 588 | . 15 . 157 . 231 . 185 Cannons . | . . . . . . . . Explosions 2379 | . . . . 716 441 . 1222 Melee 535 | . . . . . . . 535 Ramming 9 | . . . . . . . 9 Kinetic 491 | . 15 . 157 . 231 . 88 Thermal . | . . . . . . . . Explosive 2379 | . . . . 716 441 . 1222 Electromagnetic 97 | . . . . . . . 97 Impact . | . . . . . . . . Slashing 535 | . . . . . . . 535 Piercing . | . . . . . . . . Highest Corruption 2 | . . . 2 . . . 2 Average Corruption 1 | . . . 2 . . . 1 Corruption Purged . | . . . . . . . . Corruption Blocked . | . . . . . . . . Effects 3 | . . . 3 . . . . Matter Fused 1 | . . . 1 . . . . Heat Flow Errors 1 | . . . 1 . . . . Alerts 1 | . . . 1 . . . . Overload Shots . | . . . . . . . . Overflow Damage 113 | . . . . 16 40 . 57 Projectiles . | . . . . . . . . Explosions 87 | . . . . 16 40 . 31 Melee 26 | . . . . . . . 26 Knockbacks . | . . . . . . . . Impact . | . . . . . . . . Kinetic . | . . . . . . . . Secondary . | . . . . . . . . Self-Inflicted Damage 87 | . . . . 17 . . 70 Shots 4 | . . . . 1 . . 3 Rammed . | . . . . . . . . Targets Rammed 3 | . . . . . . . 3 Kicked 3 | . . . . . . . 3 Crushed . | . . . . . . . . Highest Temperature 92 | . . . 92 15 19 16 59 Average Temperature 14 | . . . 28 8 4 7 18 Received Heat Transfer 990 | . . . 66 . 57 . 867 Siege Activations . | . . . . . . . . Robots Corrupted . | . . . . . . . . Combat Hostiles . | . . . . . . . . Parts Fried . | . . . . . . . . Impact Corruptions . | . . . . . . . . Robots Melted . | . . . . . . . . Combat Hostiles . | . . . . . . . . Parts Melted . | . . . . . . . . Heat Transferred . | . . . . . . . . Parts Sabotaged . | . . . . . . . . Parts Stolen . | . . . . . . . . Parts Stripped . | . . . . . . . . Power Chain Reactions . | . . . . . . . . Missiles Intercepted . | . . . . . . . . Alert | -11 -10 -10 -9 -8 -7 -6 -6 ------- Run | Scr Mat Min Mat Mat Fac Fac Ext Peak Influence 377 | . 37 14 222 377 375 224 252 Initial 180 | . . 14 5 93 171 180 90 Average 138 | . 13 14 132 172 235 178 146 Maximum Alert Level 1 | . . . 1 1 1 1 1 Low Security (%) 66 | . 100 100 81 55 21 81 66 Level 1 33 | . . . 18 44 78 18 33 Level 2 . | . . . . . . . . Level 3 . | . . . . . . . . Level 4 . | . . . . . . . . Level 5 . | . . . . . . . . High Security . | . . . . . . . . Max Security . | . . . . . . . . Squads Dispatched 12 | . 1 . 2 2 3 3 1 Investigation 5 | . . . . 1 1 2 1 Extermination . | . . . . . . . . Reinforcement 7 | . 1 . 2 1 2 1 . Assault . | . . . . . . . . Garrison . | . . . . . . . . Intercept . | . . . . . . . . Searches Triggered . | . . . . . . . . Construction Impeded . | . . . . . . . . Haulers Reinforced 1 | . . . . . 1 . . Active Scanning Responses . | . . . . . . . . Cargo Convoy Interrupts . | . . . . . . . . Stealth | -11 -10 -10 -9 -8 -7 -6 -6 --------- Run | Scr Mat Min Mat Mat Fac Fac Ext Distress Signals 6 | . 1 . 1 2 1 . 1 Communications Jammed . | . . . . . . . . Distress Signals . | . . . . . . . . Times Spotted 83 | . 4 . 8 18 21 5 27 Peak Tracking Total 10 | . 2 . 4 8 10 5 8 Tactical Retreats 11 | . . . . 1 4 1 5 Traps | -11 -10 -10 -9 -8 -7 -6 -6 ------- Run | Scr Mat Min Mat Mat Fac Fac Ext Traps Triggered 5 | . . . 2 . 1 1 1 Indirectly . | . . . . . . . . Trap Hack Attempts . | . . . . . . . . Triggered . | . . . . . . . . Disarmed . | . . . . . . . . Reprogrammed . | . . . . . . . . Reused . | . . . . . . . . Traps Extracted . | . . . . . . . . Installed . | . . . . . . . . Triggered . | . . . . . . . . Machines | -11 -10 -10 -9 -8 -7 -6 -6 ---------- Run | Scr Mat Min Mat Mat Fac Fac Ext Machines Disabled 6 | . . . . . 4 . 2 Max in Single Turn 4 | . . . . . 4 . 1 Machines Sabotaged 1 | . . . . . 1 . . Garrisons Compromised . | . . . . . . . . Overloaded Fab Kills . | . . . . . . . . Hacking | -11 -10 -10 -9 -8 -7 -6 -6 --------- Run | Scr Mat Min Mat Mat Fac Fac Ext Machines Accessed 24 | . 2 . 4 3 7 3 5 Terminals 23 | . 2 . 4 3 6 3 5 Fabricators . | . . . . . . . . Repair Stations . | . . . . . . . . Recycling Units 1 | . . . . . 1 . . Scanalyzers . | . . . . . . . . Garrison Access . | . . . . . . . . Total Hacks 53 | . 4 . 7 6 18 11 7 Successful 20 | . . . . 2 7 7 4 Failed 33 | . 4 . 7 4 11 4 3 Catastrophic 9 | . . . 2 2 2 1 2 Database Lockouts . | . . . . . . . . Manual 28 | . 2 . 7 5 11 3 . Terminals 51 | . 4 . 7 6 16 11 7 Fabricators . | . . . . . . . . Repair Stations . | . . . . . . . . Recycling Units 2 | . . . . . 2 . . Scanalyzers . | . . . . . . . . Garrison Access . | . . . . . . . . Terminal Hacks 16 | . . . . 1 4 7 4 Record 1 | . . . . . . . 1 Open Door 2 | . . . . . . 1 1 Branch Access Points 2 | . . . . . 1 1 . Emergency Access Points 2 | . . . . . 1 1 . Alert Level 1 | . . . . . . 1 . Unreport Threat 3 | . . . . 1 1 1 . Locate Traps 2 | . . . . . . . 2 Zone Layout 3 | . . . . . 1 2 . Fabricator Hacks . | . . . . . . . . Repair Station Hacks . | . . . . . . . . Recycling Unit Hacks 1 | . . . . . 1 . . Retrieve Components 1 | . . . . . 1 . . Scanalyzer . | . . . . . . . . Garrison Access Hacks . | . . . . . . . . Unauthorized Hacks 3 | . . . . 1 2 . . Terminals 3 | . . . . 1 2 . . Assimilate 2 | . . . . 1 1 . . Sabotage 1 | . . . . . 1 . . Fabricators . | . . . . . . . . Repair Stations . | . . . . . . . . Recycling Units . | . . . . . . . . Scanalyzers . | . . . . . . . . Garrison Access . | . . . . . . . . Data Cores Recovered . | . . . . . . . . Used . | . . . . . . . . Hacking Detections 19 | . 2 . 4 3 6 1 3 Full Trace Events 3 | . 1 . . 1 . . 1 Feedback Events 1 | . . . . . . . 1 Corruption 1 | . . . . . . . 1 Feedback Blocked . | . . . . . . . . Robot Schematics Acquired . | . . . . . . . . Robots Built . | . . . . . . . . Authchips . | . . . . . . . . Time . | . . . . . . . . Total Robot Build Rating . | . . . . . . . . Part Schematics Acquired . | . . . . . . . . Parts Built . | . . . . . . . . Authchips . | . . . . . . . . Time . | . . . . . . . . Total Part Build Rating . | . . . . . . . . Parts Repaired . | . . . . . . . . Time . | . . . . . . . . Parts Recycled . | . . . . . . . . Recycled Matter . | . . . . . . . . Retrieved Matter . | . . . . . . . . Retrieved Components . | . . . . . . . . Parts Scanalyzed . | . . . . . . . . Part Schematics Acquired . | . . . . . . . . Parts Damaged . | . . . . . . . . Bothacking | -11 -10 -10 -9 -8 -7 -6 -6 ------------ Run | Scr Mat Min Mat Mat Fac Fac Ext Used RIF Installer . | . . . . . . . . Robots Hacked . | . . . . . . . . Non-combat . | . . . . . . . . Combat . | . . . . . . . . Robot Hacks Applied . | . . . . . . . . Relay Couplers Released . | . . . . . . . . Fabnet Peak Effective % . | . . . . . . . . Robots Rewired 3 | . . . . . . . 3 Allies Hacked . | . . . . . . . . Hacks Repelled . | . . . . . . . . Allies | -11 -10 -10 -9 -8 -7 -6 -6 -------- Run | Scr Mat Min Mat Mat Fac Fac Ext Total Allies 11 | . . 3 . 1 . 3 4 Largest Group 3 | . . 3 3 1 1 3 2 Highest-Rated Group 93 | . . 40 40 10 10 93 45 Highest-Rated Ally 39 | . . 16 16 10 10 31 39 Total Orders . | . . . . . . . . Ally Attacks 66 | . . . 36 . . 25 5 Total Damage 858 | . . . 359 . . 420 79 Kills 7 | . . . 3 . . 3 1 Allies Corrupted 1 | . . . 1 . . . . Allies Melted . | . . . . . . . . Intel | -11 -10 -10 -9 -8 -7 -6 -6 ------- Run | Scr Mat Min Mat Mat Fac Fac Ext Robot Analysis Total . | . . . . . . . . Derelict Logs Recovered . | . . . . . . . . Drone Launches . | . . . . . . . . Drone Recoveries . | . . . . . . . . Exploration | -11 -10 -10 -9 -8 -7 -6 -6 ------------- Run | Scr Mat Min Mat Mat Fac Fac Ext Turns Passed 2227 | . 230 289 335 101 532 194 546 Spaces Moved 2679 | 1 149 213 198 157 988 463 510 Core 15 | . . . . . . . 15 Treads . | . . . . . . . . Legs 135 | 1 36 . . . . . 98 Wheels 524 | . 113 213 198 . . . . Hover . | . . . . . . . . Flight 2005 | . . . . 157 988 463 397 Fastest Speed 25 | 120 120 135 135 27 27 25 25 Average Speed 53 | 120 131 135 135 27 27 26 50 Slowest Speed 190 | 120 145 135 135 27 104 27 190 Overloaded Moves . | . . . . . . . . Propulsion Burnouts . | . . . . . . . . Robots Hopped 28 | . . . . 2 3 21 2 Cave-ins Triggered . | . . . . . . . . Exploration Rate (%) 30 | 2 30 61 28 27 32 18 49 Regions Visited 7 Branch Regions 2 Pre-discovered Areas . | . . . . . . . . Known Exits Taken 2 | . . . . 1 . 1 . Unknown Exits Taken 5 | 1 1 1 1 . 1 . . Scrap Searched 1 | . . 1 . . . . . Spaces Dug . | . . . . . . . . Terrain Destroyed 181 | . . . . 71 30 . 80 Melee . | . . . . . . . . Projectile . | . . . . . . . . AOE 181 | . . . . 71 30 . 80 Terrain Rammed . | . . . . . . . . Walls Destroyed . | . . . . . . . . Machines Disabled . | . . . . . . . . Actions | -11 -10 -10 -9 -8 -7 -6 -6 --------- Run | Scr Mat Min Mat Mat Fac Fac Ext Total 3302 | . 176 214 258 201 1219 515 719 Wait 361 | . . 1 27 15 186 58 74 Move 2624 | . 148 212 197 152 981 428 506 Hop 19 | . . . . 2 3 12 2 Pick Up 44 | . 12 1 13 4 5 1 8 Fast Attach 28 | . 3 . 3 1 5 3 13 Attach 25 | . . . . 3 1 1 20 Detach 5 | . . . . 1 1 1 2 Swap 23 | . 10 . . 8 2 2 1 Drop 37 | . 2 . 12 9 4 5 5 Fire 50 | . 1 . 6 6 13 . 24 Melee 20 | . . . . . . . 20 Ram . | . . . . . . . . Kick 3 | . . . . . . . 3 Crush . | . . . . . . . . Escape Stasis 21 | . . . . . 18 1 2 Rewire 42 | . . . . . . 3 39 Trap . | . . . . . . . . Miscellaneous . | . . . . . . . . Route ------- -11/Scrapyard -10/Materials -10/Mines -9/Materials -8/Materials (discovered 2 exits: *Fac / [*Sto]) -7/Factory (discovered 3 exits: *Fac / *Low x2) -6/Factory (discovered 4 exits: Low x2 / *Ext x2) -6/Extension History --------- Turn | Location | Event 1 | -11/Scrapyard | Discovered new exit (range 0) 1 | -11/Scrapyard | Entered Materials 223 | -10/Materials | Discovered new exit (range 6) 231 | -10/Materials | Entered Mines 307 | -10/Mines | Build established: Mutant 373 | -10/Mines | Received a Rocket Launcher from a helpful Derelict 505 | -10/Mines | Discovered new exit (range 8) 517 | -10/Mines | Assisted by bots powering up and referring to "LRC-V3" 520 | -10/Mines | Entered Materials 520 | -9/Materials | Accompanied by 3 allies 520 | -9/Materials | Evolved 2 slots: Utility x2 835 | -9/Materials | Discovered new exit (range 16) 855 | -9/Materials | Entered another Materials area 855 | -8/Materials | Evolved 2 slots: Propulsion x2 878 | -8/Materials | Discovered new exit (range 17) 937 | -8/Materials | Discovered new exit (range 19) 938 | -8/Materials | Destroyed 9 combat bots 949 | -8/Materials | Identified exit to Factory 956 | -8/Materials | Entered Factory 956 | -7/Factory | Accompanied by 1 ally 956 | -7/Factory | Evolved 2 slots: Propulsion x1, Utility x1 1087 | -7/Factory | Identified exit to Lower Caves 1143 | -7/Factory | Build established: Sprinter 1468 | -7/Factory | Discovered new exit (range 13) 1488 | -7/Factory | Entered another Factory area 1488 | -6/Factory | Evolved 2 slots: Utility x2 1577 | -6/Factory | Allied Derelicts emerged from ambush trap array 1617 | -6/Factory | Identified exit to Lower Caves 1617 | -6/Factory | Identified exit to Extension 1682 | -6/Factory | Entered Extension 1729 | -6/Extension | Disrupted transfer network 1734 | -6/Extension | Spotted B-75 Beast 1736 | -6/Extension | Spotted B-75 Beast 1790 | -6/Extension | Lost 4 parts (1p1n1u1w) 1864 | -6/Extension | Lost 9 parts (3n3u3w) 2024 | -6/Extension | Lost 5 parts (2n1u2w) 2077 | -6/Extension | Lost 3 parts (1p1n1u) 2148 | -6/Extension | Core integrity fell below 50% 2219 | -6/Extension | Core integrity fell below 20% 2224 | -6/Extension | Rescued a captive Derelict 2228 | -6/Extension | Destroyed by B-75 Beast with Magnetic Acceleration Cannon Last Messages --------------- 02204_ Adv. Sensor Array destroyed. 02207_ System Shield destroyed. 02212_ Connecting with Terminal... Feedback: System corruption (+1%). 02212_ ALERT: Suspicious activity at Terminal E014. Dispatching Investigation squad. 02215_ Acquired Battle Rifle. 02218_ Carbon-fiber Leg destroyed. 02220_ Penetrated by Slug. 02220_ Battle Rifle destroyed. 02220_ Penetrated by Slug. 02220_ VTOL Module destroyed. 02223_ Connecting with Door Terminal... >>Open(Door) Sealed Heavy Doors opened. 02224_ N3-LFU(h): "You know, I actually felt safe in there. No one shooting at me. No one firing rockets in my general direction. And no Assembled." 02225_ Weight Redist. System destroyed. 02228_ Machine disabled. Map ----- +----------------------------------------------------+ | " #???????????????????????????????????????????? | | #????????########???????????????????????????? | | #????????# #???????????????????????????? | | ####?????# * ######??????????????????????? | | #?????#* + #??????????????????????? | | ##### ^ #?????# # #??????????????????????? | | ##### ####??# # #??????????????????????? | | / #??# ]??# #??????????????????????? | | # #???#+#???# #??????????????????????? | | # *##### ##### #??????????????????????? | | + ! #??????????????????????? | | ############### ###????????????????????? | | #?????????????# T"#????????????????????? | | #####?????????????# ""#????????????????????? | | ??????????????????####### ###????????????????????? | | ????????????????????????# #??????????????????????? | | ????????????????????????# #??????????????????????? | | ????????????????????##### #??????????????????????? | | ????????????????????# #??????????????????????? | | ????????????????????###T#h#??????????????????????? | | ??????????????????????### #??????????????????????? | | ????????????????????????# #??????????????????????? | | ????????????????????????# #??????????????????????? | | ????????????????????????# #???#??????????????????? | | ??????????????????????### ###Y##Y###?????????????? | | ??????????????????????#""@" "" "???????????? | | ??????????????????????#% u " " ??????????? | | ??????????????????????# #?????????? | | ??????###??????###????# R#?????????? | | ####### ######## ###### #?????????? | | ????????? | | ????????? | | % ?????????? | | ???????? | | ???????? | | ################# #### BB BB ##????????? | | ????????????????## # BB BB #?????????? | | ?????????????????? # # #?????????? | | ??????????????????### # #?????????? | | ????????????????????? # #?????????? | | ??????????????????????######T#"""####????????????? | | ????????????????????????????#????????????????????? | | ?????????????????????????????????????????????????? | | | | | | | | | | | | | | | +----------------------------------------------------+ Best States ------------- Heat Dissipation 59 Coolant Potential 50 Energy Generation 18 Energy Capacity 310 Matter Stores 300 Matter Capacity 300 Sight Range 20 Robot Scan Range 16 Terrain Scan Density 10 Cloak Strength 2 Additional Mass Support 6 Armor Coverage 150 Propulsion Shielding 66 Utility Shielding 66 Evasion (%) 75 Targeting Accuracy 8 Recoil Reduction 4 Defensive Hacking 10 Item Schematics ----------------- None Robot Schematics ------------------ None Fabricated ------------ Nothing Alien Tech Used ----------------- None Achievements -------------- None Challenges ------------ None Game ------ Seed ContainmentGodExtractor Manual? 0 Play Time 00:52:42 Cumulative 101.0 hours Start 2022.04.28 @ 00:46:01 End 2022.04.28 @ 01:41:10 Sessions 1 Manual Loads 0 Difficulty Rogue Special Mode None Game No. 128 Rogue 128 Adventurer 0 Explorer 0 Win Type - Total 0 Types 0/0/0/0/0/0/0/0/0 Lore% 54 Gallery% 50 Achievement% 43 Wizard Run 0 Options --------- ASCII 1 Keyboard 0 Movement Vi Keybinds 0 Fullscreen 1 Font 18/SmallcapsGlow Map View 76x50 Tactical HUD 1 Map Filters NONE Filters NONE Steam 1 RUN: 2f57cddb-8212-4c61-9175-47a462a02a37